[Event "67th Mexican-ch Open 2022"]
[Site "Chihuahua"]
[Date "2022.04.13"]
[Round "1.14"]
[White "Diaz Rosas, Julio Cesar"]
[Black "Pena Davalos, David"]
[Result "1-0"]
[ECO "C02"]
[WhiteElo "2393"]
[BlackElo "1761"]
[Annotator "TA"]
[PlyCount "55"]
[EventDate "2022.04.12"]
[EventType "swiss"]
[EventCountry "MEX"]
[SourceTitle "playchess.com"]
[Source "ChessBase"]
[SourceQuality "1"]
[TimeControl "5400+30"]

{[%evp 16,55,35,18,51,0,114,52,70,75,52,44,41,13,0,0,116,46,43,0,212,207,218,219,206,210,201,210,196,181,160,188,412,406,417,393,724,723,705,704,689,673]} 1. e4 {[%emt 0:07:13][%cal Be2e4,Be4e5][%mdl 32]} e6 {[%emt 0:00:40]} 2. d4 {[%emt 0:00:08]} d5 {[%emt 0:00:07]} 3. e5 {[%emt 0:00:08]} c5 {[%emt 0:00:12]} 4. c3 {[%emt 0:00:04]} Nc6 {[%emt 0:00:08]} 5. Nf3 {[%emt 0:00:05]} Bd7 {[%emt 0:01:22]} 6. Be2 {[%emt 0:00:57]} f6 {[%emt 0:00:29]} 7. O-O {[%emt 0:00:33]} fxe5 {[%emt 0:00:18]} 8. dxe5 {[%emt 0:00:44]} Qc7 {[%emt 0:02:23]} 9. Re1 {[%emt 0:00:48]} O-O-O {[%emt 0:01:49] C02: French: Advance Variation.} (9... Nxe5 $2 10. Nxe5 Nf6 11. Bg5 $1 $18) 10. Bf1 $1 {[%emt 0:07:29][%cal Ob2b4] [#]} h6 $146 {[%emt 0:11:12]} (10... Nh6 $11) ({Predecessor:} 10... Nh6 11. Bg5 Re8 12. c4 d4 13. Nbd2 Nf7 14. Bf4 Be7 15. Ne4 h6 16. Bg3 g5 {0-1 (55) Pridorozhni,A (2550)-Ponkratov,P (2593) Khanty-Mansiysk 2011}) 11. b4 {[%emt 0:02:38]} (11. Na3 $1 $16) 11... cxb4 $14 {[%emt 0:09:09] White is slightly better.} 12. cxb4 {[%emt 0:01:35]} Bxb4 {[%emt 0:03:19]} 13. Bd2 {[%emt 0:00:08]} Bxd2 {[%emt 0:02:15]} 14. Nbxd2 {[%emt 0:00:52][%cal Bb1d2,Bd2b3,Bb3c5][%mdl 32]} (14. Qxd2 $5 {[%cal Rb1c3]} Kb8 15. Nc3 $11) 14... Nge7 {[%emt 0:01:40]} 15. Nb3 {[%emt 0:01:04]} g5 {[%emt 0:04:29] [#]} (15... Kb8 $11 {remains equal.}) 16. Rc1 {[%emt 0:01:03]} (16. Nc5 $1 $16) 16... Kb8 {[%emt 0:06:14]} 17. Nc5 {[%emt 0:02:31] Threatens to win with Rb1.} Bc8 $2 {[%emt 0:02:45] [#]} (17... Ka8 $1 $11) 18. Nd4 $1 $18 {[%emt 0:01:35]} Qa5 {[%emt 0:14:31]} 19. Ncxe6 {[%emt 0:13:12]} Bxe6 {[%emt 0:01:38]} 20. Nxe6 {[%emt 0:00:05]} Rc8 {[%emt 0:01:34]} 21. Rc5 {[%emt 0:27:17]} Qxa2 {[%emt 0:03:29]} 22. Re2 {[%emt 0:00:43][%cal Be1e2,Be2e3,Be3b3][%mdl 32]} Qa3 {[%emt 0:01:10]} 23. Qb1 {[%emt 0:00:57][%mdl 1024] White has strong compensation. &Bianco is more active.} Nb4 {[%emt 0:08:48] Inhibits Ra2.} (23... Nd8 24. Ra2 Qxc5 25. Nxc5 Rxc5) 24. Re3 {[%emt 0:02:12]} Qa4 {[%emt 0:01:58][%cal Oa4d7]} 25. Rb3 {[%emt 0:02:13]} Nec6 {[%emt 0:02:45]} (25... Rxc5 26. Nxc5 Qc6 27. Rxb4 Qxc5 28. Rxb7+ Ka8) 26. Bb5 {[%emt 0:00:55] White is clearly winning.} Qa2 {[%emt 0:01:42]} 27. Qxa2 {[%emt 0:00:10][%mdl 64] Deflection} Nxa2 {[%emt 0:00:33]} 28. Bxc6 {[%emt 0:00:13] Weighted Error Value: White=0.11 (very precise) /Black=0.67} 1-0

[Event "67th Mexican-ch Open 2022"]
[Site "Chihuahua"]
[Date "2022.04.13"]
[Round "1.15"]
[White "Dominguez Gonzalez, Edgar"]
[Black "Torres Rosas, Luis Carlos"]
[Result "0-1"]
[ECO "C02"]
[WhiteElo "1785"]
[BlackElo "2356"]
[Annotator "TA"]
[PlyCount "54"]
[EventDate "2022.04.12"]
[EventType "swiss"]
[EventCountry "MEX"]
[SourceTitle "playchess.com"]
[Source "ChessBase"]
[SourceQuality "1"]
[TimeControl "5400+30"]

{[%evp 17,54,-13,0,-31,-11,-26,-28,-17,-15,-41,-41,-41,-39,-41,-40,-41,-41,-55,-46,-50,-46,-51,-51,-37,-37,-144,-153,-153,-153,-164,-136,-353,-352,-357,-316,-360,-357,-429,-421]} 1. e4 {[%emt 0:00:04]} e6 {[%emt 0:08:36]} 2. d4 {[%emt 0:00:30]} d5 {[%emt 0:00:04]} 3. e5 {[%emt 0:01:01]} c5 {[%emt 0:00:18]} 4. c3 {[%emt 0:00:15]} Qb6 {[%emt 0:02:35]} 5. Nf3 {[%emt 0:00:48]} Nc6 {[%emt 0:00:55]} 6. a3 {[%emt 0:00:47]} c4 {[%emt 0:06:20]} 7. Nbd2 {[%emt 0:03:13]} Na5 {[%emt 0:01:09]} 8. g3 {[%emt 0:05:15]} Bd7 {[%emt 0:00:49]} 9. h4 {[%emt 0:00:26]} Ne7 {[%emt 0:00:42]} 10. Bh3 {[%emt 0:00:27] C02: French: Advance Variation.} Qc7 {[%emt 0:01:47]} 11. O-O {[%emt 0:01:10]} Nc8 {[%emt 0:02:00]} 12. Nh2 {[%emt 0:01:03] Black has an edge.} Nb6 {[%emt 0:05:17]} 13. f4 {[%emt 0:00:11]} g6 {[%emt 0:09:26] [#]} 14. Qe1 $146 {[%emt 0:05:35]} ({Predecessor:} 14. Ng4 O-O-O 15. Nf6 Ba4 16. Qf3 Be7 17. Ng4 h6 18. Ne3 Kb8 19. Bg2 Rdf8 20. Rb1 {0-1 (65) Maloba,D (1617)-Goosen,A (2002) Bloemfontein 2018}) 14... O-O-O {[%emt 0:07:17]} 15. Bg4 {[%emt 0:01:14]} Ba4 {[%emt 0:04:11]} 16. Bd1 {[%emt 0:00:01]} Qc6 {[%emt 0:04:16]} 17. Rf3 {[%emt 0:00:36]} Bxd1 {[%emt 0:02:41]} 18. Qxd1 {[%emt 0:00:03]} Qa4 {[%emt 0:00:08]} 19. Qxa4 {[%emt 0:00:49]} Nxa4 {[%emt 0:00:06][%cal Bb6a4,Ba4c3,Bc3e2][%mdl 32]} 20. Rb1 {[%emt 0:01:57]} Kb8 {[%emt 0:04:37]} 21. b3 {[%emt 0:00:32]} ({White should play} 21. Rf2 $15) 21... cxb3 $17 {[%emt 0:00:11]} 22. Nxb3 {[%emt 0:00:03]} Nc4 {[%emt 0:03:12]} 23. Ng4 {[%emt 0:04:53]} h5 {[%emt 0:02:02]} ({Don't take} 23... Bxa3 24. Bxa3 Nxa3 25. Ra1 $18) 24. Ne3 {[%emt 0:00:05] [#] This move loses the game for White.} (24. Nf2 $17 {was called for.}) 24... Nxc3 $19 {[%emt 0:10:57]} 25. Ra1 {[%emt 0:00:56]} Ne2+ {[%emt 0:00:58]} 26. Kf2 {[%emt 0:00:42]} Nxc1 {[%emt 0:00:14]} 27. Nxc1 {[%emt 0:02:12]} Nd2 {[%emt 0:00:13] Weighted Error Value: White=0.38/Black=0.04 (flawless)} 0-1

[Event "67th Mexican-ch Open 2022"]
[Site "Chihuahua"]
[Date "2022.04.13"]
[Round "1.16"]
[White "Figueredo Losada, Leonel"]
[Black "Contreras Frias, Gabriel"]
[Result "1-0"]
[ECO "E93"]
[WhiteElo "2342"]
[BlackElo "1771"]
[Annotator "TA"]
[PlyCount "50"]
[EventDate "2022.04.12"]
[EventType "swiss"]
[EventCountry "MEX"]
[SourceTitle "playchess.com"]
[Source "ChessBase"]
[SourceQuality "1"]
[TimeControl "5400+30"]

{[%evp 18,50,85,61,65,78,93,90,95,97,124,121,147,145,144,93,256,245,275,264,467,265,675,666,770,768,739,748,837,813,817,674,671,583,826]} 1. d4 {[%emt 0:00:12]} Nf6 {[%emt 0:01:04]} 2. c4 {[%emt 0:01:39]} g6 {[%emt 0:00:08]} 3. Nc3 {[%emt 0:00:06]} Bg7 {[%emt 0:00:50]} 4. e4 {[%emt 0:00:47]} d6 {[%emt 0:00:08]} 5. Be2 {[%emt 0:00:13]} O-O {[%emt 0:00:53]} 6. Be3 {[%emt 0:00:03]} e5 {[%emt 0:03:09]} 7. d5 {[%emt 0:00:06]} Nbd7 {[%emt 0:00:52]} 8. Nf3 {[%emt 0:00:11]} a5 {[%emt 0:03:25]} 9. Nd2 {[%emt 0:00:08]} Nc5 {[%emt 0:02:45]} 10. a3 {[%emt 0:00:12][%cal Ba2a3,Ba3b4][%mdl 32] 10.h4 is the hot move.} b6 {[%emt 0:05:02] E93: King's Indian: Classical: Petrosian System with 7...Nbd7.} 11. b4 {[%emt 0:00:12]} axb4 {[%emt 0:00:03]} 12. axb4 {[%emt 0:00:06][%mdl 64] [#] Discovered Attack} Rxa1 {[%emt 0:00:06] White is better.} 13. Qxa1 {[%emt 0:00:03]} Ncd7 {[%emt 0:00:18]} 14. O-O {[%emt 0:06:46]} Ne8 {[%emt 0:02:47] [#]} 15. Qa8 $146 {[%emt 0:02:38]} ({Predecessor:} 15. Nb5 f5 16. f3 f4 17. Bf2 Nb8 18. c5 bxc5 19. bxc5 Ba6 20. c6 g5 21. Rb1 {1-0 (35) Morasso,J-Spata,R (2105) Chivilcoy 1998}) 15... f5 {[%emt 0:04:32]} 16. f3 {[%emt 0:00:07] 0x0.0017ad110bf2dp-1022s more active pieces. The black rooks are badly placed.} (16. Nf3 $142) 16... f4 $2 {[%emt 0:00:04] A mistake that costs the game.} (16... Bf6 $16) 17. Bf2 $18 {[%emt 0:00:02]} g5 {[%emt 0:26:23]} 18. Nb5 {[%emt 0:00:10][%cal Bc3b5,Bb5a7,Ba7c6][%mdl 32] [#] Threatens to win with Na7.} h5 $2 {[%emt 0:00:05]} (18... Bh6 19. Na7 Ng7) 19. Ra1 {[%emt 0:02:55]} (19. Na7 $142 Nef6 20. Nc6 (20. Qxc8 Qxc8 21. Nxc8 Rxc8 $16)) 19... Kf7 $2 {[%emt 0:04:19]} (19... Bh6 20. Na7 Ng7) 20. Na7 {[%emt 0:01:46] White is clearly winning.} Nef6 {[%emt 0:02:57]} 21. Nc6 {[%emt 0:00:21]} ({Not} 21. Nxc8 Qxc8 22. Qc6 Qb8 $18) 21... Qe8 {[%emt 0:00:01]} 22. Qa7 {[%emt 0:00:05]} Kg8 {[%emt 0:05:52]} 23. Qxc7 {[%emt 0:00:28]} Qf7 {[%emt 0:00:15]} 24. Ra8 {[%emt 0:00:55]} Ne8 {[%emt 0:36:32]} 25. Qxc8 {[%emt 1:22:49]} Nef6 {[%emt 0:00:30] Weighted Error Value: White=0.37/Black=0.78} 1-0

[Event "67th Mexican-ch Open 2022"]
[Site "Chihuahua"]
[Date "2022.04.13"]
[Round "1.17"]
[White "Kowalski Davila, Emilio Luis"]
[Black "Garcia Guerrero, Isaac Antonio"]
[Result "0-1"]
[ECO "E51"]
[WhiteElo "1735"]
[BlackElo "2338"]
[Annotator "TA"]
[PlyCount "86"]
[EventDate "2022.04.12"]
[EventType "swiss"]
[EventCountry "MEX"]
[SourceTitle "playchess.com"]
[Source "ChessBase"]
[SourceQuality "1"]
[TimeControl "5400+30"]

{[%evp 13,86,7,0,-15,-21,-25,-19,-99,-10,-93,-80,-83,-79,-111,-82,-80,-38,-107,-101,-107,-103,-135,-133,-185,-138,-127,-116,-125,-133,-122,-123,-210,-208,-321,-313,-311,-306,-308,-251,-249,-245,-246,-245,-245,-243,-250,-245,-252,-258,-277,-256,-260,-242,-310,-301,-372,-370,-529,-442,-441,-441,-566,-516,-770,-768,-731,-718,-890,-882,-882,-640,-963,-931,-816,-574]} 1. d4 {[%emt 0:00:30]} d5 {[%emt 0:06:32]} 2. c4 {[%emt 0:00:13]} e6 {[%emt 0:00:24]} 3. Nc3 {[%emt 0:00:16]} Bb4 {[%emt 0:00:31]} 4. e3 {[%emt 0:00:37]} Nf6 {[%emt 0:00:35]} 5. a3 {[%emt 0:00:33]} Bxc3+ {[%emt 0:00:34]} 6. bxc3 {[%emt 0:00:13]} O-O {[%emt 0:00:19] 6...c6 is the fancy move.} 7. Nf3 {[%emt 0:03:08]} c5 {[%emt 0:00:43]} 8. h3 {[%emt 0:04:10] E51: Nimzo-Indian: Rubinstein: 4...0-0 5 Nf3 d5.} Qc7 {[%emt 0:02:00]} 9. cxd5 {[%emt 0:01:39]} exd5 {[%emt 0:01:28] [#]} 10. Bd2 $146 {[%emt 0:03:27]} (10. a4 $11) ({Predecessor:} 10. Bb2 c4 11. Be2 Nc6 12. O-O Bf5 13. Qd2 h6 14. Nh4 Bh7 15. Bd1 Na5 16. Bc2 Nb3 17. Bxb3 cxb3 {0-1 (36) White,R (1637)-Wilkinson,D ICCF email 2019}) 10... Bf5 {[%emt 0:03:55]} ({Black should try} 10... c4 $1 $17) 11. Ne5 {[%emt 0:04:14]} (11. c4 $11) 11... Nc6 {[%emt 0:05:49]} 12. Nxc6 {[%emt 0:17:02]} bxc6 {[%emt 0:04:07]} 13. Be2 {[%emt 0:06:24]} Ne4 {[%emt 0:06:01]} 14. O-O {[%emt 0:07:32]} Rab8 {[%emt 0:02:50]} 15. Be1 {[%emt 0:07:55] [#]} (15. c4 $15) 15... c4 $1 $17 {[%emt 0:07:16]} 16. Qc1 {[%emt 0:02:37]} Rfe8 {[%emt 0:03:53]} 17. g4 {[%emt 0:12:41] [#]} Bg6 {[%emt 0:03:33] 0x0.001a398f4aa0dp-1022s more active pieces. The white rooks are badly placed.} 18. Kg2 {[%emt 0:00:40]} (18. Bd1 $17 {keeps fighting.}) 18... Qb7 {[%emt 0:08:04]} (18... Rb3 $19 {White must now prevent ...Reb8.} 19. Bd1 Reb8 20. Bxb3 cxb3) 19. Ra2 {[%emt 0:07:17]} Qb3 {[%emt 0:04:08]} 20. Qa1 {[%emt 0:00:18]} Nf6 {[%emt 0:02:13] And now ...Bb1 would win.} 21. Bd1 {[%emt 0:09:21]} Qb7 $36 {[%emt 0:02:48][%mdl 2048] Strongly threatening ...Bb1. Keeping White busy.} 22. Qc1 {[%emt 0:04:49]} (22. f3 $17) 22... Bb1 $19 {[%emt 0:07:23]} 23. Re2 {[%emt 0:01:57]} (23. Ra1 $142) 23... Bd3 {[%emt 0:00:48]} 24. Ra2 {[%emt 0:00:49]} Bxf1+ {[%emt 0:01:54]} 25. Kxf1 {[%emt 0:00:11]} Qb1 {[%emt 0:03:46]} 26. Qxb1 {[%emt 0:02:20]} Rxb1 {[%emt 0:00:10]} 27. Bc2 {[%emt 0:00:09]} Rb6 {[%emt 0:00:38]} 28. Ke2 {[%emt 0:00:42]} Reb8 {[%emt 0:00:21]} 29. Kd1 {[%emt 0:00:16]} Rb2 {[%emt 0:01:04]} 30. Ra1 {[%emt 0:00:09]} Re8 {[%emt 0:01:41]} 31. a4 {[%emt 0:00:45]} a5 {[%emt 0:00:34]} 32. Kc1 {[%emt 0:00:33]} Rb7 {[%emt 0:00:25]} 33. Ra2 {[%emt 0:00:17]} Ne4 {[%emt 0:01:25]} 34. f4 {[%emt 0:01:34]} f6 {[%emt 0:01:03]} 35. Bd1 {[%emt 0:00:18]} (35. Rb2 $142 Rxb2 36. Kxb2) 35... Reb8 {[%emt 0:01:19] Black is clearly winning.} 36. Bc2 {[%emt 0:00:05]} g6 {[%emt 0:01:20]} 37. h4 {[%emt 0:01:15]} h6 {[%emt 0:01:23]} 38. f5 {[%emt 0:00:36]} gxf5 {[%emt 0:00:24]} 39. gxf5 {[%emt 0:00:10]} Kf7 {[%emt 0:01:38]} 40. Bd1 {[%emt 0:00:27]} Rb1+ {[%emt 0:01:28]} 41. Kc2 {[%emt 0:00:10]} Ke7 {[%emt 0:00:41]} 42. h5 {[%emt 0:00:31]} R8b7 {[%emt 0:01:14]} 43. Bd2 {[%emt 0:00:50]} Nxd2 {[%emt 0:00:56] Weighted Error Value: White=0.53/Black=0.20 (precise)} 0-1

[Event "67th Mexican-ch Open 2022"]
[Site "Chihuahua"]
[Date "2022.04.13"]
[Round "1.18"]
[White "Benitez Lozano, Javier"]
[Black "Villanueva De Leon, Vanessa"]
[Result "1-0"]
[ECO "A59"]
[WhiteElo "2309"]
[BlackElo "1729"]
[Annotator "TA"]
[PlyCount "75"]
[EventDate "2022.04.12"]
[EventType "swiss"]
[EventCountry "MEX"]
[SourceTitle "playchess.com"]
[Source "ChessBase"]
[SourceQuality "1"]
[TimeControl "5400+30"]

{[%evp 21,75,57,78,68,91,73,81,86,100,94,111,98,103,93,104,101,146,144,144,144,149,148,145,137,143,119,175,186,350,340,359,353,335,308,805,463,459,222,258,243,4833,1348,29969,29969,29977,29978,29977,29977,29974,29975,29975,29976,29978,29979,29975,29975]} 1. d4 {[%emt 0:09:35]} Nf6 {[%emt 0:00:06]} 2. c4 {[%emt 0:00:19]} c5 {[%emt 0:00:25]} 3. d5 {[%emt 0:00:42]} b5 {[%emt 0:00:29]} 4. cxb5 {[%emt 0:00:28]} a6 {[%emt 0:01:24]} 5. bxa6 {[%emt 0:00:22]} Bxa6 {[%emt 0:00:48]} 6. Nc3 {[%emt 0:00:12]} g6 {[%emt 0:01:05]} 7. e4 {[%emt 0:00:27]} Bxf1 {[%emt 0:00:24]} 8. Kxf1 {[%emt 0:00:05]} d6 {[%emt 0:00:33]} 9. g3 {[%emt 0:00:28]} Bg7 {[%emt 0:01:13]} 10. Kg2 {[%emt 0:00:14]} O-O {[%emt 0:00:47]} 11. Nf3 {[%emt 0:00:23][%cal Bg1f3,Bf3d2,Bd2c4][%mdl 32]} Nbd7 {[%emt 0:02:27]} 12. a4 {[%emt 0:00:43] A59: Benko/Volga Gambit: White castles by hand.} Qb6 {[%emt 0:03:50]} 13. Ra3 {[%emt 0:01:23]} Rfb8 {[%emt 0:01:22]} 14. Nd2 $1 {[%emt 0:03:57][%mdl 4] White is better. now scores much better than the old 14.Qc2.} Ne8 {[%emt 0:05:06]} 15. Nb5 {[%emt 0:01:02]} Nc7 {[%emt 0:10:53]} 16. Nc4 {[%emt 0:00:44]} Qb7 {[%emt 0:00:52]} 17. Nxc7 {[%emt 0:01:11] &Bianco is more active.} Qxc7 {[%emt 0:02:26]} 18. a5 {[%emt 0:00:31] [#]} Rb4 $146 {[%emt 0:07:18]} ({Predecessor:} 18... Ne5 19. Nb6 Ra7 20. b3 Nd7 21. Nc4 Ne5 22. Nxe5 Bxe5 23. Bd2 Qb7 24. Qc2 Bd4 {½-½ (61) Fischer,W (2440)-Rook,D (2445) ICCF email 2019}) 19. Qc2 {[%emt 0:09:12]} Qb7 {[%emt 0:11:04]} 20. Bd2 {[%emt 0:15:52]} Rb5 {[%emt 0:13:11][%cal Rg7b2]} 21. Bc3 {[%emt 0:07:25]} Qa6 {[%emt 0:04:06]} 22. h4 {[%emt 0:12:33]} Bxc3 {[%emt 0:08:56]} 23. Rxc3 {[%emt 0:07:25]} Rab8 {[%emt 0:02:09]} (23... Nf6 $16 24. b3 h5) 24. h5 $18 {[%emt 0:01:58]} Ne5 $2 {[%emt 0:01:44]} (24... g5 25. h6 Nf8) 25. hxg6 {[%emt 0:14:53]} fxg6 {[%emt 0:03:13]} 26. Nxe5 {[%emt 0:00:38]} dxe5 {[%emt 0:00:22]} 27. Qc1 {[%emt 0:00:21] [#] Black must now prevent Qh6.} (27. Rxc5 Rxb2 28. Qd1 Qa7 $14) 27... Rxb2 $2 {[%emt 0:04:44]} (27... h5 28. Rf3 Rb3 29. Rxb3 (29. Qxc5 Rxf3 30. Kxf3 Rxb2 $16) 29... Rxb3) 28. Rf3 {[%emt 0:06:13] Intending Qh6 and mate.} Rb1 {[%emt 0:04:56]} 29. Qxc5 {[%emt 0:04:28]} (29. Qxb1 $142 Rxb1 30. Rxb1) 29... Rxh1 {[%emt 0:00:09]} 30. Kxh1 {[%emt 0:00:03][%mdl 4096] Endgame KQR-KQR} Qf1+ $2 {[%emt 0:05:20] [#]} (30... Qe2 31. Kg2 Qxe4) 31. Kh2 {[%emt 0:00:05]} Qd1 {[%emt 0:00:23]} 32. Kg2 {[%emt 0:00:50] White mates.} Rf8 {[%emt 0:03:59]} 33. Rxf8+ {[%emt 0:00:14]} Kxf8 {[%emt 0:00:05]} 34. Qc8+ {[%emt 0:00:14]} Kg7 {[%emt 0:00:16]} 35. Qc3 {[%emt 0:02:50]} Qa4 {[%emt 0:01:05]} 36. Qxe5+ {[%emt 0:00:00]} Kf7 {[%emt 0:00:35]} 37. Qe6+ {[%emt 0:00:00]} Kf8 {[%emt 0:00:06]} 38. a6 {[%emt 0:01:30] Weighted Error Value: White=0.32/Black=0.44} 1-0

[Event "67th Mexican-ch Open 2022"]
[Site "Chihuahua"]
[Date "2022.04.13"]
[Round "1.19"]
[White "Jimenez Jimenez, Dante Edgar"]
[Black "Sandoval Mercado, Carlos"]
[Result "0-1"]
[ECO "E81"]
[WhiteElo "1721"]
[BlackElo "2289"]
[Annotator "TA"]
[PlyCount "129"]
[EventDate "2022.04.12"]
[EventType "swiss"]
[EventCountry "MEX"]
[SourceTitle "playchess.com"]
[Source "ChessBase"]
[SourceQuality "1"]
[TimeControl "5400+30"]

{[%evp 18,129,14,10,10,10,26,8,25,10,25,0,0,0,0,0,8,-39,-45,-36,-35,-60,-17,-13,-19,-15,0,0,8,0,3,4,46,0,8,-50,-50,-50,-50,-50,-50,-110,-21,-56,-29,-33,-26,-97,-95,-93,-106,-118,-118,-278,-278,-314,-311,-324,-349,-350,-351,-558,0,-341,-314,-349,-314,-336,-299,-415,-338,-346,-394,-354,-284,-339,-316,-331,0,-311,-311,-311,-311,-311,-306,-303,-302,-281,-264,-29953,-29957,-29957,-29958,-29958,-29958,-29958,-29959,-29958,-29959,-29961,-29962,-29962,-29963,-29974,-29975,-29959,-7233,-29979,-29979,-29979,-29980,-29981,-29982,-29981]} 1. d4 {[%emt 0:00:46]} Nf6 {[%emt 0:00:05]} 2. c4 {[%emt 0:00:04]} g6 {[%emt 0:00:07]} 3. Nc3 {[%emt 0:00:31]} Bg7 {[%emt 0:00:04]} 4. e4 {[%emt 0:00:17]} d6 {[%emt 0:00:01]} 5. f3 {[%emt 0:00:18]} O-O {[%emt 0:00:07]} 6. Be3 {[%emt 0:00:08]} c5 {[%emt 0:01:20]} 7. dxc5 {[%emt 0:00:33]} dxc5 {[%emt 1:32:16]} 8. Qxd8 {[%emt 0:00:34]} Rxd8 {[%emt 0:00:00]} 9. Bxc5 {[%emt 0:00:18]} Nc6 {[%emt 0:00:00]} 10. Rd1 {[%emt 0:02:29]} Rxd1+ {[%emt 0:00:00] E81: King's Indian: Sämisch: 6th move deviations (including 6 Be3 c6).} 11. Kxd1 {[%emt 0:01:05] The main line 11.Kxd1 scores better than 11.Nxd1.} b6 {[%emt 0:00:00]} 12. Ba3 {[%emt 0:00:58]} Ba6 {[%emt 0:00:00] The position is equal.} 13. Nh3 {[%emt 0:03:49]} Rd8+ {[%emt 0:00:00]} 14. Kc1 {[%emt 0:01:02] [#]} Nd7 $146 {[%emt 0:00:00]} ({Predecessor:} 14... Bh6+ 15. Kb1 e6 16. Be2 Rd2 17. Rd1 Nd4 18. Bf1 Nd7 19. b3 Rxd1+ 20. Nxd1 f5 21. exf5 exf5 {1-0 (42) Le Grix de la Salle,J (1897)-Ernouf,A (1928) Montigny le Bretonneux 2008}) 15. Nd5 {[%emt 0:03:09]} e6 {[%emt 0:00:00]} 16. Nb4 {[%emt 0:01:24]} Bh6+ {[%emt 0:00:00]} 17. Kb1 {[%emt 0:00:12]} (17. Kc2 $1 $11 Nd4+ 18. Kb1) 17... Nxb4 {[%emt 0:00:00]} 18. Bxb4 {[%emt 0:00:09]} Ne5 {[%emt 0:00:00] White must now prevent ...Rd1+.} 19. Be2 {[%emt 0:05:06] Prevents Rd1+.} Nxc4 {[%emt 0:00:00][%cal Oc4a3]} 20. Re1 $1 {[%emt 0:22:56]} Nd2+ {[%emt 0:00:00]} 21. Kc2 $1 {[%emt 0:03:35]} Bxe2 {[%emt 0:00:00]} 22. Rxe2 {[%emt 0:00:08][%cal Rb4d2]} Nf1 {[%emt 0:00:00]} 23. g3 {[%emt 0:01:52]} Ne3+ {[%emt 0:00:00]} 24. Kb3 {[%emt 0:01:33]} b5 {[%emt 0:00:00]} 25. Rd2 {[%emt 0:03:13]} (25. f4 $14 Ng4 26. e5) 25... Ra8 {[%emt 0:00:00]} 26. Ba5 {[%emt 0:02:06]} (26. f4 $11) 26... Nc4 $36 {[%emt 0:00:00][%mdl 2048] Black fights for an advantage.} 27. Rd8+ {[%emt 0:00:13]} Rxd8 {[%emt 0:00:00]} 28. Bxd8 {[%emt 0:00:02][%mdl 4096] Endgame KBN-KBN} Bf8 {[%emt 0:00:00] aiming for ...Nd2+.} 29. Bg5 {[%emt 0:01:09] [#] Prevents Nd2+.} ({White should try} 29. Kc2 $15) 29... Bc5 {[%emt 0:03:20]} ({Black should play} 29... Ne5 $1 $17 {[%cal Re5f3]} 30. f4 Nf3) 30. a4 {[%emt 0:05:47]} a6 {[%emt 0:02:08]} 31. axb5 {[%emt 0:00:24]} axb5 {[%emt 0:00:01]} 32. Kc3 {[%emt 0:00:44] [#]} (32. Bf4 $11 {remains equal.}) 32... Ne5 $1 $17 {[%emt 0:00:32] &Nero is more active. Black converts the advantage convincingly.} 33. f4 {[%emt 0:09:25]} Ng4 {[%emt 0:00:05]} 34. e5 {[%emt 0:02:20] Prevents f6.} Nxh2 {[%emt 0:00:24]} 35. Bh6 $2 {[%emt 0:00:36]} (35. Kd3 $17) 35... Nf1 $19 {[%emt 0:01:07]} 36. g4 {[%emt 0:01:28]} Ne3 {[%emt 0:00:19]} 37. g5 {[%emt 0:00:42]} Nd5+ {[%emt 0:03:02]} 38. Kd3 {[%emt 0:00:37]} Bb6 {[%emt 0:00:16]} 39. Ke4 {[%emt 0:01:53]} (39. b3 $142) 39... Bc5 {[%emt 0:02:02] Hoping for ...Nb4.} 40. Kd3 $1 {[%emt 0:01:02]} Nb4+ {[%emt 0:00:33]} 41. Ke2 {[%emt 0:02:24]} Bd4 {[%emt 0:00:15]} 42. b3 {[%emt 0:00:07]} Nc6 {[%emt 0:00:29] ...Na5 is the strong threat.} 43. Kd3 {[%emt 0:00:20]} Ba7 {[%emt 0:00:35]} 44. Kc3 {[%emt 0:00:40]} Bc5 {[%emt 0:00:01]} 45. Kd3 {[%emt 0:00:25]} Nb4+ {[%emt 0:00:48]} 46. Ke2 {[%emt 0:00:44]} Bb6 {[%emt 0:01:09]} 47. Kd2 {[%emt 0:01:27]} Bc5 $2 {[%emt 0:00:58]} (47... Ba7 $19 {Threatens to win with ...Bb6.} 48. Kc3 Nc6) 48. Kc3 $2 {[%emt 0:01:04][%mdl 8192]} (48. Ke2 $1 $11) 48... Nd5+ {[%emt 0:00:07]} 49. Kd3 {[%emt 0:00:11]} Ne7 {[%emt 0:00:05]} 50. Ke2 {[%emt 0:00:49]} Nf5 {[%emt 0:00:02] Strongly threatening ...Nd4+.} 51. Kd3 {[%emt 0:00:24]} Nh4 {[%emt 0:01:42]} 52. Ke2 {[%emt 0:01:20]} Bb6 {[%emt 0:00:06]} ({Don't blunder} 52... Nf5 $2 53. Kd2 $19) 53. Nf2 $2 {[%emt 0:01:16]} (53. Kd3 $19) 53... Bxf2 {[%emt 0:00:33]} ({Weaker is} 53... Nf5 54. Ng4 $17) 54. Kxf2 {[%emt 0:00:01] KB-KN} Nf5 {[%emt 0:00:08]} 55. Ke1 {[%emt 0:02:01]} Nd4 {[%emt 0:00:06]} 56. Kd2 {[%emt 0:00:30]} Nxb3+ {[%emt 0:01:15]} 57. Kc3 {[%emt 0:00:01]} Nc5 {[%emt 0:00:05]} 58. Kb4 {[%emt 0:00:12]} Nd3+ {[%emt 0:00:05]} 59. Kxb5 {[%emt 0:00:02]} Nxf4 {[%emt 0:00:05]} 60. Kc5 {[%emt 0:00:41]} Nd5 {[%emt 0:01:04]} 61. Kd6 {[%emt 0:00:39]} Ne3 {[%emt 0:00:21] ( -> ...Nf5+)} 62. Kc5 {[%emt 0:01:54]} Nf5 {[%emt 0:00:06] Black mates.} 63. Kc4 {[%emt 0:00:43]} Nxh6 {[%emt 0:00:21]} 64. gxh6 {[%emt 0:00:07]} f6 {[%emt 0:00:02]} 65. Kd4 {[%emt 0:20:21] Weighted Error Value: White=0.49/Black=0.25 (precise)} 0-1